Workbook

Sheet Exercise 1
A1: DATA FOR 6 FURNITURE COMPANIES
A2: Variance-covariance matrix | B2: La-Z-Boy | C2: Kimball | D2: Flexsteel | E2: Leggett | F2: Miller | G2: Shaw | I2: Means
A3: La-Z-Boy | B3: 0.1152028155 | C3: 0.03980191005 | D3: 0.1792077039 | E3: 0.04917706248 | F3: 0.05684513533 | G3: 0.09887207952 | I3: 0.2924344829
A4: Kimball | B4: 0.03980191005 | C4: 0.06485515465 | D4: 0.04469186658 | E4: 0.006221647056 | F4: 0.03491058166 | G4: 0.02686506402 | I4: 0.2068039972
A5: Flexsteel | B5: 0.1792077039 | C5: 0.04469186658 | D5: 0.3333550581 | E5: 0.07754359307 | F5: 0.0886426122 | G5: 0.1487370359 | I5: 0.2502203693
A6: Leggett | B6: 0.04917706248 | C6: 0.006221647056 | D6: 0.07754359307 | E6: 0.103263344 | F6: 0.01906740168 | G6: 0.05972665194 | I6: 0.3164151888
A7: Miller | B7: 0.05684513533 | C7: 0.03491058166 | D7: 0.0886426122 | E7: 0.01906740168 | F7: 0.05941713248 | G7: 0.02430888668 | I7: 0.1533892143
A8: Shaw | B8: 0.09887207952 | C8: 0.02686506402 | D8: 0.1487370359 | E8: 0.05972665194 | F8: 0.02430888668 | G8: 0.1653336419 | I8: 0.4387209563
A10: Constant | B10: 0 | C10: 0.18
A12: Envelope portfolio for above constants
B13: =MMULT(MINVERSE($B$3:$G$8),$I$3:$I$8-B10)/SUM(MMULT(MINVERSE($B$3:$G$8),$I$3:$I$8-B10)) -> 0.4201897132 | C13: =MMULT(MINVERSE($B$3:$G$8),$I$3:$I$8-C10)/SUM(MMULT(MINVERSE($B$3:$G$8),$I$3:$I$8-C10)) -> 1.733726382 | D13: =getformula(C13) -> <-- {=MMULT(MINVERSE($B$3:$G$8),$I$3:$I$8-C10)/SUM(MMULT(MINVERSE($B$3:$G$8),$I$3:$I$8-C10))}
B14: 0.1578963116 | C14: -0.04994151403
B15: -0.418596458 | C15: -1.012956296
B16: 0.2808674685 | C16: 0.3970990979
B17: 0.251183097 | C17: -0.7872888325
B18: 0.3084598678 | C18: 0.7193611626
A21: Mean | B21: =MMULT(TRANSPOSE(B13:B18),$I$3:$I$8) -> 0.3135175087 | C21: =MMULT(TRANSPOSE(C13:C18),$I$3:$I$8) -> 0.5636963627 | D21: =getformula(C21) -> <-- {=MMULT(TRANSPOSE(C13:C18),$I$3:$I$8)}
A22: Variance | B22: =MMULT(MMULT(TRANSPOSE(B13:B18),$B$3:$G$8),B13:B18) -> 0.04102343728 | C22: =MMULT(MMULT(TRANSPOSE(C13:C18),$B$3:$G$8),C13:C18) -> 0.2119653836 | D22: =getformula(C22) -> <-- {=MMULT(MMULT(TRANSPOSE(C13:C18),$B$3:$G$8),C13:C18)}
A23: Covariance | B23: =MMULT(MMULT(TRANSPOSE(B13:B18),B3:G8),C13:C18) -> 0.07375907801 | C23: =getformula(B23) -> <-- {=MMULT(MMULT(TRANSPOSE(B13:B18),B3:G8),C13:C18)}
A25: Sample portfolio calculation
A26: Proportion | B26: 0.3
A27: Mean | B27: =B26*B21+(1-B26)*C21 -> 0.4886427065 | C27: =getformula(B27) -> <-- =B26*B21+(1-B26)*C21
A28: Variance | B28: =B26^2*B22+(1-B26)^2*C22+2*B26*(1-B26)*B23 -> 0.1385339601 | C28: =getformula(B28) -> <-- =B26^2*B22+(1-B26)^2*C22+2*B26*(1-B26)*B23
A29: Sigma | B29: =SQRT(B28) -> 0.3722015046
E30: Sigma | F30: Mean
E31: =B29 -> 0.3722015046 | F31: =B27 -> 0.4886427065 | G31: =getformula(F31)&", data table header" -> <-- =B27, data table header
D32: -1 | E32: 0.7706157664 | F32: 0.8138752167 | T32: 1
D33: -0.8 | E33: 0.7075285845 | F33: 0.7638394459 | T33: 0.1
D34: -0.6 | E34: 0.6448119025 | F34: 0.7138036751
D35: -0.4 | E35: 0.582585388 | F35: 0.6637679043
D36: -0.2 | E36: 0.5210246946 | F36: 0.6137321335
D37: 0 | E37: 0.4603969847 | F37: 0.5636963627
D38: 0.2 | E38: 0.4011255264 | F38: 0.5136605919
D39: 0.4 | E39: 0.3439122642 | F39: 0.4636248211
D40: 0.6 | E40: 0.2899780272 | F40: 0.4135890503
D41: 0.8 | E41: 0.2415295431 | F41: 0.3635532795
D42: 1 | E42: 0.2025424333 | F42: 0.3135175087
D43: 1.2 | E43: 0.1792986547 | F43: 0.2634817379
D44: 1.4 | E44: 0.1780736676 | F44: 0.2134459671
D45: 1.6 | E45: 0.1992739515 | F45: 0.1634101963
D46: 1.8 | E46: 0.2369549274 | F46: 0.1133744255
D47: 2 | E47: 0.2846450784 | F47: 0.06333865475
D48: 2.2 | E48: 0.3381355599 | F48: 0.01330288395

Sheet Exercise 3
A1: Variance-covariance matrix | F1: Mean returns | G1: Mean minus constant
A2: 0.4 | B2: 0.03 | C2: 0.02 | D2: 0 | F2: 0.06 | G2: =F2-$E$7 -> -0.005
A3: =B2 -> 0.03 | B3: 0.2 | C3: 0.001 | D3: -0.06 | F3: 0.05 | G3: =F3-$E$7 -> -0.015
A4: =C2 -> 0.02 | B4: =C3 -> 0.001 | C4: 0.3 | D4: 0.03 | F4: 0.07 | G4: =F4-$E$7 -> 0.005
A5: =D2 -> 0 | B5: =D3 -> -0.06 | C5: =D4 -> 0.03 | D5: 0.1 | F5: 0.08 | G5: =F5-$E$7 -> 0.015
I6: =getformula(E9) -> <-- {=MMULT(MINVERSE(A2:D5),G2:G5)}
D7: Constant | E7: 0.065
B8: z | C8: x | E8: z | F8: y
B9: =MMULT(MINVERSE(A2:D5),F2:F5) -> 0.1018652933 | C9: =B9/SUM($B$9:$B$12) -> 0.05398586511 | D9: =getformula(C9) -> <-- =B9/SUM($B$9:$B$12) | E9: =MMULT(MINVERSE(A2:D5),G2:G5) -> -0.01008932164 | F9: =E9/SUM($E$9:$E$12) -> -0.1162982682
B10: 0.5657037097 | C10: =B10/SUM($B$9:$B$12) -> 0.2998077477 | E10: -0.03528607065 | F10: =E10/SUM($E$9:$E$12) -> -0.4067378419
B11: 0.1141385692 | C11: 0.06049037118 | E11: 0.004715538746 | F11: 0.05435538777
B12: 1.105180655 | C12: 0.585716016 | E12: 0.127413696 | F12: 1.468680722
B13: Sum | C13: =SUM(C9:C12) -> 1 | E13: Sum | F13: =SUM(F9:F12) -> 1
B16: Portfolio X | C16: Portfolio Y
A17: Mean | B17: =MMULT(TRANSPOSE(C9:C12),F2:F5) -> 0.06932114655 | C17: =MMULT(TRANSPOSE(F9:F12),F2:F5) -> 0.09398454674 | D17: =getformula(C17) -> <-- {=MMULT(TRANSPOSE(F9:F12),F2:F5)}
A18: Variance | B18: =MMULT(MMULT(TRANSPOSE(C9:C12),A2:D5),C9:C12) -> 0.03673834282 | C18: =MMULT(MMULT(TRANSPOSE(F9:F12),A2:D5),F9:F12) -> 0.3341010142 | D18: =getformula(C18) -> <-- {=MMULT(MMULT(TRANSPOSE(F9:F12),A2:D5),F9:F12)}
A19: Sigma | B19: =SQRT(B18) -> 0.1916724884 | C19: =SQRT(C18) -> 0.578014718 | D19: <-- =SQRT(C18)
A20: Covariance | B20: =MMULT(MMULT(TRANSPOSE(C9:C12),A2:D5),F9:F12) -> 0.04980928143 | C20: <-- {=MMULT(MMULT(TRANSPOSE(C9:C12),A2:D5),F9:F12)}
A21: Correlation | B21: =B20/(B19*C19) -> 0.4495847778 | C21: <-- =B20/(B19*C19)
A23: One Portfolio
A24: W in Port X | B24: 0.6
A25: Mean | B25: =B24*B17+(1-B24)*C17 -> 0.07918650663 | C25: =getformula(B25) -> <-- =B24*B17+(1-B24)*C17
A26: Sigma | B26: =SQRT(B24^2*B18+(1-B24)^2*C18+2*B24*(1-B24)*B20) -> 0.300982426 | C26: =getformula(B26) -> <-- =SQRT(B24^2*B18+(1-B24)^2*C18+2*B24*(1-B24)*B20)
A28: W in Port 1 | B28: Sigma | C28: Mean
B29: =B26 -> 0.300982426 | C29: =B25 -> 0.07918650663
A30: -1 | B30: 1.083469092 | C30: 0.1186479469
A31: =A30+0.4 -> -0.6 | B31: 0.8791419563 | C31: 0.1087825869
A32: =A31+0.4 -> -0.2 | B32: 0.6772492444 | C32: 0.09891722678
A33: 0.2 | B33: 0.4808670844 | C33: 0.08905186671
A34: 0.6 | B34: 0.300982426 | C34: 0.07918650663
A35: 1 | B35: 0.1916724884 | C35: 0.06932114655
A36: 1.4 | B36: 0.2639638593 | C36: 0.05945578648
A37: 1.8 | B37: 0.4352081678 | C37: 0.0495904264
A38: 2.2 | B38: 0.6292265361 | C38: 0.03972506632
A39: 2.6 | B39: 0.8302027296 | C39: 0.02985970625
A40: 3 | B40: 1.03408789 | C40: 0.01999434617
A41: 3.4 | B41: 1.239447301 | C41: 0.01012898609
A42: 3.8 | B42: 1.445652833 | C42: 0.0002636260182
A43: Asset1 | B43: =SQRT(A2) -> 0.632455532 | D43: 0.06
A44: Asset2 | B44: =SQRT(B3) -> 0.4472135955 | D44: 0.05
A45: Asset3 | B45: =SQRT(C4) -> 0.5477225575 | D45: 0.07
A46: Asset4 | B46: =SQRT(D5) -> 0.316227766 | D46: 0.08

Sheet Exercise 4
A1: A FOUR-ASSET PORTFOLIO PROBLEM
A2: Variance-covariance | F2: Mean returns | G2: St. dev. | I2: Excess return
A3: 0.1 | B3: 0.01 | C3: 0.03 | D3: 0.05 | F3: 0.06 | G3: =SQRT(A3) -> 0.316227766 | I3: =$F3-B$8 -> 0.06 | J3: =$F3-C$8 -> 0.01 | K3: =getformula(J3) -> <-- =$F3-C$8
A4: =B3 -> 0.01 | B4: 0.3 | C4: 0.06 | D4: -0.04 | F4: 0.08 | G4: =SQRT(B4) -> 0.5477225575 | I4: =$F4-B$8 -> 0.08 | J4: 0.03
A5: =C3 -> 0.03 | B5: =C4 -> 0.06 | C5: 0.4 | D5: 0.02 | F5: 0.1 | G5: =SQRT(C5) -> 0.632455532 | I5: 0.1 | J5: 0.05
A6: =D3 -> 0.05 | B6: =D4 -> -0.04 | C6: =D5 -> 0.02 | D6: 0.5 | F6: 0.15 | G6: =SQRT(D6) -> 0.7071067812 | I6: 0.15 | J6: 0.1
A8: Constant | B8: 0 | C8: 0.05
A10: Portfolio 1 | D10: Portfolio 2 | F10: Both these portfolios are efficient
A11: z | B11: x | D11: z | E11: y
A12: =MMULT(MINVERSE(A3:D6),I3:I6) -> 0.3861062832 | B12: =A12/SUM($A$12:$A$15) -> 0.3552726316 | D12: =MMULT(MINVERSE(A3:D6),J3:J6) -> -0.04603149523 | E12: =D12/SUM($D$12:$D$15) -> -0.123088685
A13: 0.2567320497 | B13: =A13/SUM($A$12:$A$15) -> 0.2362299576 | D13: 0.1091122497 | E13: =D13/SUM($D$12:$D$15) -> 0.2917672622
A14: 0.1687733713 | B14: 0.1552954778 | D14: 0.1016221625 | E14: =D14/SUM($D$12:$D$15) -> 0.2717386931
A15: 0.2751770008 | B15: 0.2532019329 | D15: 0.209267243 | E15: 0.5595827298
A17: Mean | B17: =MMULT(TRANSPOSE(B12:B15),F3:F6) -> 0.09372459223 | E17: =MMULT(TRANSPOSE(E12:E15),F3:F6) -> 0.1270673386 | F17: =getformula(E17) -> <-- {=MMULT(TRANSPOSE(E12:E15),F3:F6)}
A18: Variance | B18: =MMULT(MMULT(TRANSPOSE(B12:B15),A3:D6),B12:B15) -> 0.08623993955 | E18: =MMULT(MMULT(TRANSPOSE(E12:E15),A3:D6),E12:E15) -> 0.206078845 | F18: =getformula(E18) -> <-- {=MMULT(MMULT(TRANSPOSE(E12:E15),A3:D6),E12:E15)}
A19: Covariance | B19: =MMULT(MMULT(TRANSPOSE(B12:B15),A3:D6),E12:E15) -> 0.116920003 | F19: =getformula(B19) -> <-- {=MMULT(MMULT(TRANSPOSE(B12:B15),A3:D6),E12:E15)}
A23: Proportion of 1 | B23: 0.6
A24: Portfolio mean | B24: =B23*B17+(1-B23)*E17 -> 0.1070616908 | C24: =getformula(B24) -> <-- =B23*B17+(1-B23)*E17
A25: Portfolio var. | B25: =B23^2*B18+(1-B23)^2*E18+2*B23*(1-B23)*B19 -> 0.1201405949 | C25: =getformula(B25) -> <-- =B23^2*B18+(1-B23)^2*E18+2*B23*(1-B23)*B19
A26: Portfolio st. dev. | B26: =SQRT(B25) -> 0.3466130333 | C26: <-- =SQRT(B25)
A29: Data table of portfolios
A30: Proportion of 1 | B30: =B26 -> 0.3466130333 | C30: =B24 -> 0.1070616908
A31: -1.4 | B31: 0.7552099103 | C31: 0.1737471836
A32: =A31+0.25 -> -1.15 | B32: 0.6989151353 | C32: 0.165411497
A33: =A32+0.25 -> -0.9 | B33: 0.6433759175 | C33: 0.1570758104
A34: -0.65 | B34: 0.5888061001 | C34: 0.1487401238
A35: -0.4 | B35: 0.5355021225 | C35: 0.1404044372
A36: -0.15 | B36: 0.4838824962 | C36: 0.1320687506
A37: 0.1 | B37: 0.434547885 | C37: 0.123733064
A38: 0.35 | B38: 0.3883700632 | C38: 0.1153973774
A39: 0.6 | B39: 0.3466130333 | C39: 0.1070616908
A40: 0.85 | B40: 0.3110622624 | C40: 0.09872600419
A41: 1.1 | B41: 0.2840575904 | C41: 0.09039031759
A42: 1.35 | B42: 0.2681931124 | C42: 0.08205463098
A43: 1.6 | B43: 0.2654735838 | C43: 0.07371894438
A44: 1.85 | B44: 0.2762874395 | C44: 0.06538325778
A45: 2.1 | B45: 0.2991707239 | C45: 0.05704757117
A46: 2.35 | B46: 0.3316343502 | C46: 0.04871188457
A47: 2.6 | B47: 0.3711730185 | C47: 0.04037619797
A48: 2.85 | B48: 0.4157731647 | C48: 0.03204051136
A49: Stock A | B49: =G3 -> 0.316227766 | D49: =F3 -> 0.06
A50: Stock B | B50: =G4 -> 0.5477225575 | D50: =F4 -> 0.08
A51: Stock C | B51: =G5 -> 0.632455532 | D51: =F5 -> 0.1
A52: Stock D | B52: =G6 -> 0.7071067812 | D52: =F6 -> 0.15
